[Event "Deloitte NK 2021"]
[Site "Hoogeveen, Netherlands"]
[Date "2021.10.20"]
[Round "7.1"]
[White "Janssen, Ruud"]
[Black "Lai, Hing Ting"]
[Result "1/2-1/2"]
[TimeControl "90min/40moves + 30min + 30sec/move"]
[WhiteElo "2534"]
[BlackElo "2439"]

1. c4 {[%clk 00:25:18]} {[%emt 00:00:02]} e6 {[%clk 00:25:19]} {[%emt
00:00:02]} 2. Nc3 {[%clk 00:25:24]} {[%emt 00:00:04]} Bb4 {[%clk 00:25:27]}
{[%emt 00:00:02]} 3. Qc2 {[%clk 00:25:02]} {[%emt 00:00:32]} d5 {[%clk
00:24:30]} {[%emt 00:01:07]} 4. a3 {[%clk 00:25:01]} {[%emt 00:00:11]} Bxc3
{[%clk 00:24:20]} {[%emt 00:00:20]} 5. Qxc3 {[%clk 00:25:08]} {[%emt 00:00:02]}
Nf6 {[%clk 00:24:23]} {[%emt 00:00:08]} 6. Nf3 {[%clk 00:24:25]} {[%emt
00:00:53]} O-O {[%clk 00:24:30]} {[%emt 00:00:03]} 7. b4 {[%clk 00:24:11]}
{[%emt 00:00:24]} b6 {[%clk 00:23:14]} {[%emt 00:01:26]} 8. Bb2 {[%clk
00:24:08]} {[%emt 00:00:13]} dxc4 {[%clk 00:22:34]} {[%emt 00:00:51]} 9. e3
{[%clk 00:23:11]} {[%emt 00:01:06]} Bb7 {[%clk 00:21:44]} {[%emt 00:01:01]} 10.
Bxc4 {[%clk 00:23:10]} {[%emt 00:00:10]} Nbd7 {[%clk 00:21:51]} {[%emt
00:00:02]} 11. O-O {[%clk 00:22:30]} {[%emt 00:00:50]} Qe7 {[%clk 00:21:58]}
{[%emt 00:00:03]} 12. d3 {[%clk 00:20:33]} {[%emt 00:02:08]} a6 {[%clk
00:20:36]} {[%emt 00:01:32]} 13. e4 {[%emt 00:02:14]} c5 {[%clk 00:20:29]} 14.
bxc5 {[%clk 00:16:43]} {[%emt 00:02:13]} Nxc5 {[%clk 00:20:17]} {[%emt
00:00:22]} 15. a4 {[%clk 00:16:24]} {[%emt 00:00:29]} Rac8 {[%clk 00:18:07]}
{[%emt 00:02:19]} 16. Qb4 {[%clk 00:15:28]} {[%emt 00:01:07]} Qd8 {[%clk
00:16:31]} {[%emt 00:01:46]} 17. Bd4 {[%clk 00:12:13]} {[%emt 00:03:25]} a5
{[%clk 00:12:04]} {[%emt 00:04:37]} 18. Qb2 {[%clk 00:10:58]} {[%emt 00:01:24]}
Bc6 {[%clk 00:11:00]} {[%emt 00:01:16]} 19. Rfb1 {[%clk 00:05:35]} {[%emt
00:05:32]} Nxa4 {[%clk 00:09:14]} {[%emt 00:01:56]} 20. Qb3 {[%clk 00:05:40]}
{[%emt 00:00:05]} b5 {[%clk 00:08:31]} {[%emt 00:00:53]} 21. Bxb5 {[%clk
00:05:09]} {[%emt 00:00:42]} Bxb5 {[%clk 00:08:38]} {[%emt 00:00:02]} 22. Qxb5
{[%clk 00:05:15]} {[%emt 00:00:03]} Nc3 {[%clk 00:08:47]} {[%emt 00:00:02]} 23.
Bxc3 {[%clk 00:04:46]} {[%emt 00:00:39]} Rxc3 {[%clk 00:08:56]} {[%emt
00:00:02]} 24. Rd1 {[%clk 00:04:17]} {[%emt 00:00:39]} h6 {[%clk 00:08:09]}
{[%emt 00:00:57]} 25. h3 {[%clk 00:04:00]} {[%emt 00:00:26]} Rc2 {[%clk
00:06:43]} {[%emt 00:01:36]} 26. Re1 {[%clk 00:02:42]} {[%emt 00:01:28]} Qc7
{[%clk 00:05:48]} {[%emt 00:01:05]} 27. Qxa5 {[%clk 00:02:37]} {[%emt
00:00:15]} Qxa5 {[%clk 00:05:09]} {[%emt 00:00:49]} 28. Rxa5 {[%clk 00:02:45]}
{[%emt 00:00:01]} Nd7 {[%clk 00:04:52]} {[%emt 00:00:27]} 29. d4 {[%clk
00:02:05]} {[%emt 00:00:50]} Rb8 {[%clk 00:04:35]} {[%emt 00:00:27]} 30. Ra7
{[%clk 00:01:33]} {[%emt 00:00:42]} Nf6 {[%clk 00:04:45]} 31. Ne5 {[%clk
00:01:33]} {[%emt 00:00:11]} Rbb2 {[%clk 00:04:16]} {[%emt 00:00:38]} 32. Nd3
{[%clk 00:01:39]} {[%emt 00:00:04]} Rb3 {[%clk 00:04:18]} {[%emt 00:00:07]} 33.
Ne5 {[%clk 00:01:01]} {[%emt 00:00:48]} Rbb2 {[%clk 00:04:27]} {[%emt
00:00:02]} 34. Rf1 {[%clk 00:01:00]} {[%emt 00:00:11]} Nxe4 {[%clk 00:04:35]}
{[%emt 00:00:02]} 35. Rxf7 {[%clk 00:00:58]} {[%emt 00:00:11]} Ng3 {[%clk
00:04:13]} {[%emt 00:00:33]} 36. Rd1 {[%clk 00:00:42]} {[%emt 00:00:26]} Nf5
{[%clk 00:04:02]} {[%emt 00:00:22]} 37. Rf1 {[%clk 00:00:39]} {[%emt 00:00:12]}
Re2 {[%clk 00:03:26]} {[%emt 00:00:45]} 38. Rc7 {[%clk 00:00:13]} {[%emt
00:00:36]} Ne3 {[%clk 00:03:16]} {[%emt 00:00:21]} 39. Nd3 {[%clk 00:00:14]}
{[%emt 00:00:09]} Rbd2 {[%clk 00:03:25]} {[%emt 00:00:01]} 40. Nf4 {[%clk
00:00:23]} {[%emt 00:00:02]} Nxf1 {[%clk 00:02:46]} {[%emt 00:00:49]} 41. Nxe2
{[%clk 00:00:31]} {[%emt 00:00:01]} Ne3 {[%clk 00:01:55]} {[%emt 00:01:01]} 42.
fxe3 {[%clk 00:00:35]} {[%emt 00:00:06]} Rxe2 {[%clk 00:02:04]} {[%emt
00:00:01]} 43. Rc3 {[%clk 00:00:43]} {[%emt 00:00:02]} Kf7 {[%clk 00:02:03]}
{[%emt 00:00:11]} 44. Kf1 {[%clk 00:00:48]} {[%emt 00:00:05]} Rd2 {[%clk
00:02:11]} {[%emt 00:00:02]} 45. Rc1 {[%clk 00:00:46]} {[%emt 00:00:12]} Kf6
{[%clk 00:02:12]} {[%emt 00:00:10]} 46. Rc5 {[%clk 00:00:39]} {[%emt 00:00:17]}
g6 {[%clk 00:01:54]} {[%emt 00:00:27]} 47. Re5 {[%clk 00:00:44]} {[%emt
00:00:05]} h5 {[%clk 00:01:58]} {[%emt 00:00:07]} 48. h4 {[%clk 00:00:49]}
{[%emt 00:00:04]} Ra2 {[%clk 00:02:02]} {[%emt 00:00:06]} 49. Kg1 {[%clk
00:00:58]} {[%emt 00:00:01]} Rb2 {[%clk 00:01:54]} {[%emt 00:00:19]} 50. Kh2
{[%clk 00:01:06]} {[%emt 00:00:01]} Ra2 {[%clk 00:01:50]} {[%emt 00:00:14]} 51.
Kg3 {[%clk 00:01:15]} {[%emt 00:00:01]} Ra1 {[%clk 00:01:54]} {[%emt 00:00:06]}
52. Rb5 {[%clk 00:01:13]} {[%emt 00:00:11]} Re1 {[%clk 00:01:51]} {[%emt
00:00:13]} 53. Kf2 {[%clk 00:01:15]} {[%emt 00:00:09]} Rh1 {[%clk 00:02:00]}
{[%emt 00:00:01]} 54. g3 {[%clk 00:01:22]} {[%emt 00:00:03]} Rd1 {[%clk
00:01:59]} {[%emt 00:00:10]} 55. Kf3 {[%clk 00:01:25]} {[%emt 00:00:08]} Rf1+
{[%clk 00:02:02]} {[%emt 00:00:07]} 56. Ke4 {[%clk 00:01:29]} {[%emt 00:00:07]}
Rg1 {[%clk 00:01:42]} {[%emt 00:00:29]} 57. Rg5 {[%clk 00:01:31]} {[%emt
00:00:07]} Ra1 {[%clk 00:01:44]} {[%emt 00:00:08]} 58. Rc5 {[%clk 00:01:18]}
{[%emt 00:00:24]} Rg1 {[%clk 00:01:48]} {[%emt 00:00:06]} 59. Kf3 {[%clk
00:01:22]} {[%emt 00:00:06]} Rd1 {[%clk 00:01:39]} {[%emt 00:00:18]} 60. Rc8
{[%clk 00:01:17]} {[%emt 00:00:16]} Rg1 {[%clk 00:01:22]} {[%emt 00:00:27]} 61.
Ra8 {[%clk 00:01:11]} {[%emt 00:00:16]} Rb1 {[%clk 00:00:50]} {[%emt 00:00:42]}
62. Ke4 {[%clk 00:01:17]} {[%emt 00:00:04]} Rg1 {[%clk 00:00:58]} {[%emt
00:00:02]} 63. Rf8+ {[%clk 00:01:25]} {[%emt 00:00:01]} Ke7 {[%clk 00:00:58]}
{[%emt 00:00:10]} 64. Rf3 {[%clk 00:01:33]} {[%emt 00:00:03]} Rg2 {[%clk
00:00:48]} {[%emt 00:00:21]} 65. Kf4 {[%clk 00:01:30]} {[%emt 00:00:12]} Kf6
{[%clk 00:00:54]} {[%emt 00:00:04]} 66. e4 {[%clk 00:01:38]} {[%emt 00:00:02]}
Re2 {[%clk 00:00:41]} {[%emt 00:00:23]} 67. e5+ {[%clk 00:01:45]} {[%emt
00:00:03]} Kg7 {[%clk 00:00:38]} {[%emt 00:00:13]} 68. Ra3 {[%clk 00:01:48]}
{[%emt 00:00:07]} Rf2+ {[%clk 00:00:22]} {[%emt 00:00:26]} 69. Ke3 {[%clk
00:01:54]} {[%emt 00:00:03]} Rf7 {[%clk 00:00:13]} {[%emt 00:00:20]} 70. Ra6
{[%clk 00:02:00]} {[%emt 00:00:04]} Re7 {[%clk 00:00:22]} 71. Ke4 {[%clk
00:01:55]} {[%emt 00:00:15]} Kf7 {[%clk 00:00:32]} {[%emt 00:00:01]} 72. Ra2
{[%clk 00:01:57]} {[%emt 00:00:07]} Rb7 {[%clk 00:00:15]} {[%emt 00:00:27]} 73.
Rf2+ {[%clk 00:02:04]} {[%emt 00:00:03]} Kg7 {[%clk 00:00:24]} {[%emt
00:00:01]} 74. Rf6 {[%clk 00:02:02]} {[%emt 00:00:12]} Re7 {[%clk 00:00:32]}
{[%emt 00:00:03]} 75. Kf4 {[%clk 00:02:02]} {[%emt 00:00:09]} Kh6 {[%clk
00:00:41]} 76. Kf3 {[%clk 00:01:52]} {[%emt 00:00:20]} Rd7 {[%clk 00:00:40]}
{[%emt 00:00:12]} 77. Ke4 {[%clk 00:01:57]} {[%emt 00:00:04]} Re7 {[%clk
00:00:49]} 78. Kd3 {[%clk 00:01:35]} {[%emt 00:00:32]} Kg7 {[%clk 00:00:58]}
{[%emt 00:00:02]} 79. Kc4 {[%clk 00:01:43]} {[%emt 00:00:01]} Re8 {[%clk
00:00:22]} {[%emt 00:00:47]} 80. Kd3 {[%clk 00:01:11]} {[%emt 00:00:41]} Re7
{[%clk 00:00:27]} {[%emt 00:00:05]} 81. Ke4 {[%clk 00:00:59]} {[%emt 00:00:22]}
Re8 {[%clk 00:00:36]} {[%emt 00:00:02]} 82. Rf1 {[%clk 00:00:55]} {[%emt
00:00:14]} Re7 {[%clk 00:00:13]} {[%emt 00:00:33]} 83. Rc1 {[%clk 00:00:58]}
{[%emt 00:00:06]} g5 {[%clk 00:00:16]} {[%emt 00:00:07]} 84. hxg5 {[%clk
00:00:43]} {[%emt 00:00:24]} Kg6 {[%clk 00:00:26]} {[%emt 00:00:01]} 85. Rc8
{[%clk 00:00:31]} {[%emt 00:00:22]} Kxg5 {[%clk 00:00:29]} {[%emt 00:00:07]} 86.
Rg8+ {[%clk 00:00:38]} {[%emt 00:00:02]} Kh6 {[%clk 00:00:37]} {[%emt
00:00:03]} 87. d5 {[%clk 00:00:24]} {[%emt 00:00:24]} exd5+ {[%clk 00:00:42]}
{[%emt 00:00:05]} 88. Kxd5 {[%clk 00:00:31]} {[%emt 00:00:03]} Kh7 {[%clk
00:00:51]} 89. Rg5 {[%clk 00:00:15]} {[%emt 00:00:25]} Kh6 {[%clk 00:01:01]} 90.
Rg8 {[%clk 00:00:15]} {[%emt 00:00:11]} Kh7 {[%clk 00:01:08]} {[%emt 00:00:03]}
91. Rc8 {[%clk 00:00:21]} {[%emt 00:00:02]} Kg6 {[%clk 00:01:07]} {[%emt
00:00:12]} 92. Kd6 {[%clk 00:00:15]} {[%emt 00:00:17]} Kf7 {[%clk 00:01:10]}
{[%emt 00:00:07]} 93. Rh8 {[%clk 00:00:19]} {[%emt 00:00:05]} Re6+ {[%clk
00:01:12]} {[%emt 00:00:08]} 94. Kd5 {[%clk 00:00:27]} {[%emt 00:00:02]} Rg6
{[%clk 00:01:18]} {[%emt 00:00:04]} 95. Rxh5 {[%clk 00:00:12]} {[%emt
00:00:25]} Rxg3 {[%clk 00:01:28]} {[%emt 00:00:01]} 96. Rh7+ {[%clk 00:00:20]}
Kf8 {[%clk 00:01:15]} {[%emt 00:00:23]} 97. Kd6 {[%clk 00:00:27]} {[%emt
00:00:03]} Re3 {[%clk 00:00:42]} {[%emt 00:00:42]} 98. Ke6 {[%clk 00:00:25]}
{[%emt 00:00:13]} Ra3 {[%clk 00:00:19]} {[%emt 00:00:33]} 99. Rh8+ {[%clk
00:00:33]} {[%emt 00:00:03]} Kg7 {[%clk 00:00:29]} 100. Rd8 {[%clk 00:00:28]}
{[%emt 00:00:15]} Ra5 {[%clk 00:00:24]} {[%emt 00:00:14]} 101. Kd6 {[%clk
00:00:29]} {[%emt 00:00:10]} Ra2 {[%clk 00:00:15]} {[%emt 00:00:18]} 102. e6
{[%clk 00:00:34]} {[%emt 00:00:05]} Ra6+ {[%clk 00:00:14]} {[%emt 00:00:12]}
103. Ke7 {[%clk 00:00:40]} {[%emt 00:00:02]} Rb6 {[%clk 00:00:15]} {[%emt
00:00:10]} 104. Rd7 {[%clk 00:00:29]} {[%emt 00:00:20]} Rb8 {[%clk 00:00:12]}
{[%emt 00:00:14]} 105. Ra7 {[%clk 00:00:23]} {[%emt 00:00:16]} Kg6 {[%clk
00:00:13]} {[%emt 00:00:10]} 106. Kd7 {[%clk 00:00:23]} {[%emt 00:00:10]} Kf6
{[%clk 00:00:13]} {[%emt 00:00:09]} 107. e7 {[%clk 00:00:11]} {[%emt 00:00:22]}
Kf7 {[%clk 00:00:20]} {[%emt 00:00:03]} 108. Ra1 {[%clk 00:00:12]} {[%emt
00:00:09]} Rb7+ {[%clk 00:00:17]} {[%emt 00:00:13]} 109. Kd8 {[%clk 00:00:20]}
{[%emt 00:00:02]} Rb8+ {[%clk 00:00:25]} {[%emt 00:00:02]} 110. Kd7 {[%clk
00:00:28]} {[%emt 00:00:02]} Rb7+ {[%clk 00:00:35]} {[%emt 00:00:01]} 111. Kd8
{[%clk 00:00:36]} {[%emt 00:00:01]} Rb8+ {[%clk 00:00:45]} 112. Kc7 {[%clk
00:00:45]} {[%emt 00:00:01]} Re8 {[%clk 00:00:51]} {[%emt 00:00:03]} 113. Kd6
{[%clk 00:00:44]} {[%emt 00:00:11]} Rxe7 {[%clk 00:00:56]} {[%emt 00:00:05]}
114. Rf1+ {[%clk 00:00:51]} {[%emt 00:00:02]} 1/2-1/2

[Event "Deloitte NK 2021"]
[Site "Hoogeveen, Netherlands"]
[Date "2021.10.20"]
[Round "7.2"]
[White "Zwirs, Nico"]
[Black "Ernst, Sipke"]
[Result "1-0"]
[TimeControl "90min/40moves + 30min + 30sec/move"]
[WhiteElo "2439"]
[BlackElo "2534"]

1. e4 {[%clk 00:25:18]} {[%emt 00:00:01]} e6 {[%clk 00:25:20]} {[%emt
00:00:01]} 2. d4 {[%clk 00:25:26]} {[%emt 00:00:02]} d5 {[%clk 00:25:29]} 3.
Nc3 {[%clk 00:25:35]} {[%emt 00:00:01]} Bb4 {[%clk 00:25:38]} {[%emt 00:00:01]}
4. exd5 {[%clk 00:25:43]} {[%emt 00:00:02]} exd5 {[%clk 00:25:43]} {[%emt
00:00:05]} 5. Bd3 {[%clk 00:25:52]} Nf6 {[%clk 00:25:51]} {[%emt 00:00:02]} 6.
a3 {[%clk 00:25:54]} {[%emt 00:00:09]} Be7 {[%clk 00:24:51]} {[%emt 00:01:10]}
7. Bf4 {[%clk 00:25:28]} {[%emt 00:00:35]} O-O {[%clk 00:24:08]} {[%emt
00:00:52]} 8. Nf3 {[%clk 00:24:52]} {[%emt 00:00:47]} c5 {[%clk 00:20:49]}
{[%emt 00:03:30]} 9. dxc5 {[%clk 00:24:34]} {[%emt 00:00:27]} Bxc5 {[%clk
00:20:56]} {[%emt 00:00:03]} 10. O-O {[%clk 00:24:18]} {[%emt 00:00:25]} Bg4
{[%clk 00:20:40]} {[%emt 00:00:27]} 11. h3 {[%clk 00:23:30]} {[%emt 00:00:58]}
Bh5 {[%clk 00:20:45]} {[%emt 00:00:05]} 12. Bg5 {[%clk 00:17:24]} {[%emt
00:06:17]} Nc6 {[%clk 00:20:19]} {[%emt 00:00:36]} 13. Bxf6 {[%clk 00:14:51]}
{[%emt 00:02:42]} Qxf6 {[%clk 00:20:26]} {[%emt 00:00:03]} 14. Nxd5 {[%clk
00:14:58]} {[%emt 00:00:03]} Qh6 {[%clk 00:13:04]} {[%emt 00:07:33]} 15. g4
{[%clk 00:14:14]} {[%emt 00:00:53]} Bg6 {[%clk 00:12:05]} {[%emt 00:01:09]} 16.
Kg2 {[%clk 00:14:21]} {[%emt 00:00:02]} Rad8 {[%clk 00:11:47]} {[%emt
00:00:30]} 17. g5 {[%clk 00:13:25]} {[%emt 00:01:06]} Bxd3 {[%clk 00:10:51]}
{[%emt 00:01:05]} 18. gxh6 {[%clk 00:13:32]} {[%emt 00:00:04]} Be4 {[%clk
00:10:53]} {[%emt 00:00:08]} 19. hxg7 {[%clk 00:08:49]} {[%emt 00:04:53]} Kxg7
{[%clk 00:11:01]} {[%emt 00:00:01]} 20. Re1 {[%clk 00:07:51]} {[%emt 00:01:08]}
Bxd5 {[%clk 00:10:52]} {[%emt 00:00:20]} 21. c4 {[%clk 00:08:00]} {[%emt
00:00:01]} Be6 {[%clk 00:09:33]} {[%emt 00:01:29]} 22. Qc1 {[%clk 00:08:05]}
{[%emt 00:00:05]} Rg8 {[%clk 00:09:13]} {[%emt 00:00:30]} 23. Rxe6 {[%clk
00:06:08]} {[%emt 00:02:07]} fxe6 {[%clk 00:09:09]} {[%emt 00:00:14]} 24. Kh1
{[%clk 00:05:49]} {[%emt 00:00:28]} Rdf8 {[%clk 00:04:15]} {[%emt 00:05:05]} 25.
Qc3+ {[%clk 00:05:24]} {[%emt 00:00:34]} Kh6 {[%emt 00:00:43]} 26. Rg1 {[%clk
00:05:24]} Rxg1+ {[%clk 00:03:58]} {[%emt 00:00:05]} 27. Kxg1 {[%clk 00:05:31]}
{[%emt 00:00:02]} Rf5 {[%clk 00:02:43]} {[%emt 00:01:25]} 28. b4 {[%clk
00:05:04]} {[%emt 00:00:38]} Be7 {[%clk 00:02:22]} {[%emt 00:00:31]} 29. Qe3+
{[%clk 00:04:38]} {[%emt 00:00:35]} Kg7 {[%clk 00:02:27]} {[%emt 00:00:05]} 30.
Nd4 {[%clk 00:04:03]} {[%emt 00:00:45]} Re5 {[%clk 00:01:29]} {[%emt 00:01:08]}
31. Qg3+ {[%clk 00:03:48]} {[%emt 00:00:25]} Kf6 {[%clk 00:01:38]} 32. Nxc6
{[%clk 00:03:14]} {[%emt 00:00:45]} bxc6 {[%clk 00:01:42]} {[%emt 00:00:06]} 33.
Qf3+ {[%clk 00:03:01]} {[%emt 00:00:23]} Rf5 {[%clk 00:01:40]} {[%emt
00:00:11]} 34. Qxc6 {[%clk 00:03:08]} {[%emt 00:00:04]} a5 {[%clk 00:01:49]} 35.
c5 {[%clk 00:02:59]} {[%emt 00:00:19]} axb4 {[%clk 00:01:56]} {[%emt 00:00:03]}
36. axb4 {[%clk 00:03:08]} {[%emt 00:00:01]} Rf4 {[%clk 00:01:54]} {[%emt
00:00:12]} 37. Qb6 {[%clk 00:02:56]} {[%emt 00:00:20]} Rc4 {[%clk 00:01:57]}
{[%emt 00:00:09]} 38. Qb5 {[%clk 00:02:36]} {[%emt 00:00:30]} Rc3 {[%clk
00:01:27]} {[%emt 00:00:40]} 39. Kg2 {[%clk 00:02:38]} {[%emt 00:00:07]} h5
{[%clk 00:01:03]} {[%emt 00:00:35]} 40. Qe2 {[%clk 00:02:21]} {[%emt 00:00:26]}
h4 {[%clk 00:01:01]} {[%emt 00:00:13]} 41. Qb2 {[%clk 00:02:29]} {[%emt
00:00:01]} 1-0

[Event "Deloitte NK 2021"]
[Site "Hoogeveen, Netherlands"]
[Date "2021.10.20"]
[Round "7.3"]
[White "Van den Doel, Erik"]
[Black "Ten Hertog, Hugo"]
[Result "0-1"]
[TimeControl "90min/40moves + 30min + 30sec/move"]
[WhiteElo "2601"]
[BlackElo "2519"]

1. d4 {[%clk 00:25:17]} {[%emt 00:00:03]} Nf6 {[%clk 00:25:14]} {[%emt
00:00:06]} 2. Nf3 {[%clk 00:25:24]} {[%emt 00:00:02]} g6 {[%clk 00:25:23]}
{[%emt 00:00:02]} 3. Bg5 {[%clk 00:25:27]} {[%emt 00:00:05]} Bg7 {[%clk
00:25:31]} {[%emt 00:00:04]} 4. Nbd2 {[%clk 00:25:34]} {[%emt 00:00:02]} O-O
{[%clk 00:25:30]} {[%emt 00:00:11]} 5. c3 {[%clk 00:25:42]} {[%emt 00:00:03]}
d6 {[%clk 00:25:38]} {[%emt 00:00:02]} 6. e4 {[%clk 00:24:07]} {[%emt
00:01:45]} Nc6 {[%clk 00:25:21]} {[%emt 00:00:27]} 7. Bd3 {[%clk 00:22:30]}
{[%emt 00:01:46]} h6 {[%clk 00:24:54]} {[%emt 00:00:37]} 8. Bh4 {[%clk
00:22:29]} {[%emt 00:00:12]} Nh5 {[%clk 00:25:00]} {[%emt 00:00:03]} 9. O-O
{[%clk 00:21:23]} {[%emt 00:01:16]} Nf4 {[%clk 00:23:33]} {[%emt 00:01:37]} 10.
Bc2 {[%clk 00:18:36]} {[%emt 00:02:57]} g5 {[%clk 00:19:13]} {[%emt 00:04:31]}
11. Bg3 {[%clk 00:17:23]} {[%emt 00:01:22]} e5 {[%clk 00:19:20]} {[%emt
00:00:03]} 12. dxe5 {[%clk 00:17:02]} {[%emt 00:00:31]} dxe5 {[%clk 00:17:29]}
{[%emt 00:02:01]} 13. Nc4 {[%clk 00:16:57]} {[%emt 00:00:16]} Qf6 {[%clk
00:17:36]} {[%emt 00:00:02]} 14. Ne3 {[%clk 00:16:48]} {[%emt 00:00:19]} Ne7
{[%clk 00:17:38]} {[%emt 00:00:08]} 15. Re1 {[%clk 00:15:39]} {[%emt 00:01:20]}
c6 {[%clk 00:16:09]} {[%emt 00:01:38]} 16. Bxf4 {[%clk 00:13:18]} {[%emt
00:02:31]} gxf4 {[%clk 00:16:15]} {[%emt 00:00:04]} 17. Nf5 {[%clk 00:13:19]}
{[%emt 00:00:09]} Nxf5 {[%clk 00:12:52]} {[%emt 00:03:33]} 18. exf5 {[%clk
00:13:25]} {[%emt 00:00:03]} Bxf5 {[%clk 00:12:20]} {[%emt 00:00:44]} 19. Nxe5
{[%clk 00:11:02]} {[%emt 00:02:34]} Rad8 {[%clk 00:11:50]} {[%emt 00:00:39]} 20.
Qb1 {[%clk 00:10:09]} {[%emt 00:01:02]} Be6 {[%clk 00:06:04]} {[%emt 00:05:55]}
21. Bb3 {[%clk 00:10:10]} {[%emt 00:00:11]} Bf5 {[%clk 00:03:59]} {[%emt
00:02:15]} 22. Bc2 {[%clk 00:10:11]} {[%emt 00:00:09]} Rfe8 {[%clk 00:03:56]}
{[%emt 00:00:13]} 23. Nf3 {[%clk 00:06:37]} {[%emt 00:03:44]} Rxe1+ {[%clk
00:03:45]} {[%emt 00:00:20]} 24. Nxe1 {[%clk 00:06:45]} {[%emt 00:00:02]} Bg4
{[%clk 00:03:25]} {[%emt 00:00:31]} 25. Bh7+ {[%clk 00:05:55]} {[%emt
00:01:01]} Kh8 {[%clk 00:02:44]} {[%emt 00:00:50]} 26. Qe4 {[%clk 00:04:55]}
{[%emt 00:01:10]} Rd2 {[%clk 00:02:21]} {[%emt 00:00:33]} 27. Nd3 {[%clk
00:04:08]} {[%emt 00:00:57]} Re2 {[%clk 00:02:00]} {[%emt 00:00:30]} 28. Qxf4
{[%clk 00:03:58]} {[%emt 00:00:20]} Qxf4 {[%clk 00:02:05]} {[%emt 00:00:05]} 29.
Nxf4 {[%clk 00:04:07]} {[%emt 00:00:02]} Rxb2 {[%clk 00:02:12]} {[%emt
00:00:03]} 30. Be4 {[%clk 00:03:45]} {[%emt 00:00:31]} Bxc3 {[%clk 00:02:19]}
{[%emt 00:00:04]} 31. h3 {[%clk 00:03:52]} {[%emt 00:00:03]} Rb4 {[%clk
00:01:03]} {[%emt 00:01:26]} 32. Rc1 {[%clk 00:02:56]} {[%emt 00:01:06]} Bd2
{[%clk 00:01:11]} {[%emt 00:00:02]} 33. Nd3 {[%clk 00:03:05]} Rxe4 {[%clk
00:01:14]} {[%emt 00:00:06]} 34. Rc2 {[%clk 00:03:14]} {[%emt 00:00:01]} Rd4
{[%clk 00:01:22]} {[%emt 00:00:02]} 35. Ne5 {[%clk 00:03:02]} {[%emt 00:00:22]}
Bf5 {[%clk 00:01:12]} {[%emt 00:00:19]} 36. Rb2 {[%clk 00:03:12]} {[%emt
00:00:03]} Bf4 {[%clk 00:00:59]} {[%emt 00:00:21]} 37. Nxf7+ {[%clk 00:03:20]}
{[%emt 00:00:03]} Kg7 {[%clk 00:01:08]} 0-1